lending/lending_fUSD_20250121
["ID","MTS","AMOUNT","RATE_DAILY","PERIOD"]
[349877174,1737474647198,-500.0,0.00019452,2]
[349877175,1737474647208,-1939.56,0.00019452,2]
[349877176,1737474647218,-681.82,0.00019452,2]
[349877177,1737474647227,-500.0,0.00019452,2]
[349877178,1737474647238,-500.0,0.00019452,2]
[349877179,1737474647248,-672.4,0.00019452,2]
[349877180,1737474647257,-500.0,0.00019452,2]
[349877181,1737474647266,-699.6,0.00019452,2]
[349877182,1737474647276,-500.0,0.00019452,2]
[349877183,1737474647286,-500.0,0.00019452,2]
[349877184,1737474647296,-500.0,0.00019452,2]
[349877185,1737474647305,-1468.31,0.00019452,2]
[349877186,1737474647315,-200.0,0.00019452,2]
[349877187,1737474647325,-500.0,0.00019452,2]
[349877188,1737474647334,-1154.15,0.00019452,2]
[349877189,1737474647344,-500.0,0.00019452,2]
[349877190,1737474647354,-500.0,0.00019452,2]
[349877191,1737474647364,-500.0,0.00019452,2]
[349877192,1737474647374,-435.0118188,0.00019452,2]
[349877193,1737474647384,-500.0,0.00019452,2]
[349877194,1737474647397,-500.0,0.00019452,2]
[349877195,1737474647407,-559.94,0.00019452,2]
[349877196,1737474647416,-500.0,0.00019452,2]
[349877197,1737474647427,-500.0,0.00019452,2]
[349877198,1737474647436,-500.0,0.00019452,2]
[349877199,1737474647446,-500.0,0.00019452,2]
[349877200,1737474647456,-500.0,0.00019452,2]
[349877201,1737474647466,-500.0,0.00019452,2]
[349877202,1737474647476,-500.0,0.00019452,2]
[349877203,1737474647486,-500.0,0.00019452,2]
[349877204,1737474647496,-500.0,0.00019452,2]
[349877205,1737474647506,-500.0,0.00019452,2]
[349877206,1737474647515,-500.0,0.00019452,2]
[349877207,1737474647525,-1745.23,0.00019452,2]
[349877208,1737474647535,-500.0,0.00019452,2]
[349877209,1737474647544,-500.0,0.00019452,2]
[349877210,1737474647554,-981.39,0.00019452,2]
[349877211,1737474647564,-1059.46,0.00019452,2]
[349877212,1737474647574,-532.97,0.00019452,2]
[349877213,1737474647583,-818.21,0.00019452,2]
[349877214,1737474647593,-1403.91,0.00019452,2]
[349877215,1737474647604,-500.0,0.00019452,2]
[349877216,1737474647613,-500.0,0.00019452,2]
[349877217,1737474647623,-500.0,0.00019452,2]
[349877218,1737474647633,-500.0,0.00019452,2]
[349877219,1737474647642,-500.0,0.00019452,2]
[349877220,1737474647651,-1202.59,0.00019452,2]
[349877221,1737474647660,-511.14317639,0.00019452,2]
[349877222,1737474647670,-500.0,0.00019452,2]
[349877223,1737474647682,-716.07,0.00019452,2]
[349877224,1737474647692,-500.0,0.00019452,2]
[349877225,1737474647702,-1620.95,0.00019452,2]
[349877226,1737474647711,-500.0,0.00019452,2]
[349877227,1737474647720,-817.58,0.00019452,2]
[349877228,1737474647732,-3229.8,0.00019452,2]
[349877229,1737474647742,-2780.97,0.00019452,2]
[349877230,1737474647753,-500.0,0.00019452,2]
[349877231,1737474647763,-84.43139727,0.00019452,2]
[349877232,1737474647784,-329.19,0.00019452,2]
[349877233,1737474647803,-2010.42860273,0.00019452,2]
[349877234,1737474647813,-500.0,0.00019452,2]
[349877235,1737474647822,-500.0,0.00019452,2]
[349877236,1737474647832,-500.0,0.00019452,2]
[349877237,1737474647842,-500.0,0.00019452,2]
[349877238,1737474647852,-388.39255435,0.00019452,2]
[349877239,1737474647951,-179.166716,0.00019178,2]
[349877240,1737474647961,-111.60744565,0.00019452,2]
[349877241,1737474647971,-544.64,0.00019452,2]
[349877242,1737474647980,-39.69223618,0.00019452,2]
[349877243,1737474647994,-460.30776382,0.00019452,2]
[349877244,1737474648004,-500.0,0.00019452,2]
[349877245,1737474648014,-975.17,0.00019452,2]
[349877246,1737474648024,-1132.61,0.00019452,2]
[349877247,1737474648034,-1296.58,0.00019452,2]
[349877248,1737474648043,-3191.84,0.00019452,2]
[349877249,1737474648053,-500.0,0.00019452,2]
[349877250,1737474648063,-1721.61,0.00019452,2]
[349877251,1737474648233,-636.28,0.00019452,2]
[349877252,1737474648247,-500.0,0.00019452,2]
[349877253,1737474648257,-500.0,0.00019452,2]
[349877254,1737474648267,-500.0,0.00019452,2]
[349877255,1737474648278,-500.0,0.00019452,2]
[349877256,1737474648288,-501.37,0.00019452,2]
[349877257,1737474648299,-1926.11,0.00019452,2]
[349877258,1737474648310,-500.0,0.00019452,2]
[349877259,1737474648320,-500.0,0.00019452,2]
[349877260,1737474648330,-500.0,0.00019452,2]
[349877261,1737474648340,-500.0,0.00019452,2]
[349877262,1737474648350,-2109.35,0.00019452,2]
[349877263,1737474648360,-363.1515635,0.00019452,2]
[349877264,1737474648440,-1569.3284365,0.00019452,2]
[349877265,1737474648450,-2372.91,0.00019452,2]
[349877266,1737474648462,-500.0,0.00019452,2]
[349877267,1737474648471,-1014.68,0.00019452,2]
[349877268,1737474648482,-500.0,0.00019452,2]
[349877269,1737474648493,-1024.95,0.00019452,2]
[349877270,1737474648503,-500.0,0.00019452,2]
[349877271,1737474648513,-3306.66,0.00019452,2]
[349877272,1737474648522,-500.0,0.00019452,2]
[349877273,1737474648532,-582.22,0.00019452,2]
[349877274,1737474648542,-570.34,0.00019452,2]
[349877275,1737474648552,-500.0,0.00019452,2]
[349877276,1737474648561,-500.0,0.00019452,2]
[349877277,1737474648571,-683.02,0.00019452,2]
[349877278,1737474648581,-4776.62,0.00019452,2]
[349877279,1737474648592,-1055.36,0.00019452,2]
[349877280,1737474648602,-500.0,0.00019452,2]
[349877281,1737474648613,-6136.23,0.00019452,2]
[349877282,1737474648623,-1554.77,0.00019452,2]
[349877283,1737474648632,-500.0,0.00019452,2]
[349877284,1737474648642,-500.0,0.00019452,2]
[349877285,1737474648652,-500.0,0.00019452,2]
[349877286,1737474648661,-1781.47,0.00019452,2]
[349877287,1737474648671,-628.73,0.00019452,2]
[349877288,1737474648681,-500.0,0.00019452,2]
[349877289,1737474648690,-500.0,0.00019452,2]
[349877290,1737474648700,-500.0,0.00019452,2]
[349877291,1737474648710,-1310.4,0.00019452,2]
[349877292,1737474648720,-500.0,0.00019452,2]
[349877293,1737474648729,-500.0,0.00019452,2]
[349877294,1737474648739,-500.0,0.00019452,2]
[349877295,1737474648749,-500.0,0.00019452,2]
[349877296,1737474648759,-500.0,0.00019452,2]
[349877297,1737474648770,-500.0,0.00019452,2]
[349877298,1737474648781,-1020.8,0.00019452,2]
[349877299,1737474648790,-1728.8,0.00019452,2]
[349877300,1737474648800,-500.0,0.00019452,2]
[349877301,1737474648810,-500.0,0.00019452,2]
[349877302,1737474648819,-500.0,0.00019452,2]
[349877303,1737474648829,-500.0,0.00019452,2]
[349877304,1737474648839,-500.0,0.00019452,2]
[349877305,1737474648849,-699.58,0.00019452,2]
[349877306,1737474648859,-500.0,0.00019452,2]
[349877307,1737474648868,-500.0,0.00019452,2]
[349877308,1737474648878,-577.76656227,0.00019452,2]
[349877309,1737474648887,-972.15,0.00019452,2]
[349877310,1737474648897,-500.0,0.00019452,2]
[349877311,1737474648906,-500.0,0.00019452,2]
[349877312,1737474648917,-500.0,0.00019452,2]
[349877313,1737474648927,-804.37,0.00019452,2]
[349877314,1737474648936,-500.0,0.00019452,2]
[349877315,1737474648945,-1409.43,0.00019452,2]
[349877316,1737474648955,-500.0,0.00019452,2]
[349877317,1737474648964,-1623.47,0.00019452,2]
[349877318,1737474648974,-2340.95,0.00019452,2]
[349877319,1737474648984,-500.0,0.00019452,2]
[349877320,1737474648995,-4425.4,0.00019452,2]
[349877321,1737474649006,-500.0,0.00019452,2]
[349877322,1737474649015,-500.0,0.00019452,2]
[349877323,1737474649025,-500.0,0.00019452,2]
[349877324,1737474649035,-500.0,0.00019452,2]
[349877325,1737474649045,-800.86,0.00019452,2]
[349877326,1737474649055,-727.39,0.00019452,2]
[349877327,1737474649065,-500.0,0.00019452,2]
[349877328,1737474649075,-1998.36,0.00019452,2]
[349877329,1737474649085,-500.0,0.00019452,2]
[349877330,1737474649095,-500.0,0.00019452,2]
[349877331,1737474649104,-500.0,0.00019452,2]
[349877332,1737474649114,-2315.0,0.00019452,2]
[349877333,1737474649124,-516.56,0.00019452,2]
[349877334,1737474649133,-500.0,0.00019452,2]
[349877335,1737474649143,-500.0,0.00019452,2]
[349877336,1737474649154,-500.0,0.00019452,2]
[349877337,1737474649164,-500.0,0.00019452,2]
[349877338,1737474649173,-500.0,0.00019452,2]
[349877339,1737474649183,-596.41,0.00019452,2]
[349877340,1737474649193,-500.0,0.00019452,2]
[349877341,1737474649203,-1648.62,0.00019452,2]
[349877342,1737474649213,-500.0,0.00019452,2]
[349877343,1737474649223,-500.0,0.00019452,2]
[349877344,1737474649233,-500.0,0.00019452,2]
[349877345,1737474649244,-1199.29,0.00019452,2]
[349877346,1737474649254,-1392.1,0.00019452,2]
[349877347,1737474649264,-500.0,0.00019452,2]
[349877348,1737474649274,-534.92,0.00019452,2]
[349877349,1737474649284,-500.0,0.00019452,2]
[349877350,1737474649294,-500.0,0.00019452,2]
[349877351,1737474649303,-500.0,0.00019452,2]
[349877352,1737474649313,-2011.94,0.00019452,2]
[349877353,1737474649323,-500.0,0.00019452,2]
[349877354,1737474649333,-500.0,0.00019452,2]
[349877355,1737474649343,-5644.74,0.00019452,2]
[349877356,1737474649353,-673.33,0.00019452,2]
[349877357,1737474649362,-500.0,0.00019452,2]
[349877358,1737474649372,-500.0,0.00019452,2]
[349877359,1737474649382,-557.03539044,0.00019452,2]
[349877360,1737474649395,-500.0,0.00019452,2]
[349877361,1737474649404,-568.27269664,0.00019452,2]
[349877362,1737474649414,-777.76,0.00019452,2]
[349877363,1737474649424,-507.57303565,0.00019452,2]
[349877364,1737474649435,-500.0,0.00019452,2]
[349877365,1737474649445,-500.0,0.00019452,2]
[349877366,1737474649456,-500.0,0.00019452,2]
[349877367,1737474649468,-500.0,0.00019452,2]
[349877368,1737474649479,-500.0,0.00019452,2]
[349877369,1737474649492,-1479.55,0.00019452,2]
[349877370,1737474649502,-500.0,0.00019452,2]
[349877371,1737474649516,-500.0,0.00019452,2]
[349877372,1737474649526,-500.0,0.00019452,2]
[349877373,1737474649537,-2595.7752,0.00019459,2]
[349877374,1737474649547,-200.0,0.00019574,2]
[349877375,1737474649556,-563.07325687,0.00019594,2]
[349877376,1737474649566,-913.7189817,0.00019594,2]
[349877377,1737474649575,-230.05443608,0.00019626,2]
[349877378,1737474649584,-237.14962232,0.00019626,2]
[349877379,1737474649594,-150.0,0.00019672,2]
[349877380,1737474649604,-193.55931365,0.00019716,2]
[349877381,1737474649613,-798.53,0.00019725,2]
[349877382,1737474649622,-500.0,0.00019725,2]
[349877383,1737474649632,-817.06,0.00019725,2]
[349877384,1737474649641,-769.39,0.00019725,2]
[349877385,1737474649652,-667.25,0.00019725,2]
[349877386,1737474649665,-788.56,0.00019725,2]
[349877387,1737474649675,-1019.73,0.00019725,2]
[349877388,1737474649685,-690.89,0.00019725,2]
[349877389,1737474649694,-500.0,0.00019725,2]
[349877390,1737474649704,-1523.74,0.00019725,2]
[349877391,1737474649714,-3909.88,0.00019725,2]
[349877392,1737474649724,-1042.28,0.00019725,2]
[349877393,1737474649734,-747.46,0.00019725,2]
[349877394,1737474649748,-577.23,0.00019725,2]
[349877395,1737474649758,-1375.5,0.00019725,2]
[349877396,1737474649768,-500.0,0.00019725,2]
[349877397,1737474649778,-508.86,0.00019725,2]
[349877398,1737474649788,-1125.11,0.00019725,2]
[349877399,1737474649798,-500.0,0.00019725,2]
[349877400,1737474649809,-1000.0,0.00019725,2]
[349877401,1737474649819,-1037.54,0.00019725,2]
[349877402,1737474649828,-500.0,0.00019725,2]
[349877403,1737474649838,-945.47,0.00019725,2]
[349877404,1737474649847,-1286.42,0.00019725,2]
[349877405,1737474649858,-565.6006713,0.00019726,2]
[349877406,1737474649868,-843.91,0.00019726,2]
[349877407,1737474649877,-500.0,0.00019726,2]
[349877408,1737474649887,-500.0,0.00019726,2]
[349877409,1737474649896,-500.0,0.00019726,2]
[349877410,1737474649906,-383.53758481,0.00019726,2]
[349877411,1737474649916,-500.0,0.00019726,2]
[349877412,1737474649925,-500.0,0.00019726,2]
[349877413,1737474649935,-500.0,0.00019726,2]
[349877414,1737474649945,-500.0,0.00019726,2]
[349877415,1737474649955,-510.82214671,0.00019726,2]
[349877416,1737474649965,-500.0,0.00019726,2]
[349877417,1737474649975,-500.0,0.00019726,2]
[349877418,1737474649985,-500.0,0.00019726,2]
[349877419,1737474650001,-500.0,0.00019726,2]
[349877420,1737474650012,-500.0,0.00019726,2]
[349877421,1737474650022,-500.0,0.00019726,2]
[349877422,1737474650032,-500.0,0.00019726,2]
[349877423,1737474650043,-500.0,0.00019726,2]
[349877424,1737474650055,-500.0,0.00019726,2]
[349877425,1737474650065,-500.0,0.00019726,2]
[349877426,1737474650076,-500.0,0.00019726,2]
[349877427,1737474650086,-500.0,0.00019726,2]
[349877428,1737474650096,-500.0,0.00019726,2]
[349877429,1737474650105,-500.0,0.00019726,2]
[349877430,1737474650115,-500.0,0.00019726,2]
[349877431,1737474650125,-500.0,0.00019726,2]
[349877432,1737474650135,-500.0,0.00019726,2]
[349877433,1737474650145,-500.0,0.00019726,2]
[349877434,1737474650155,-500.0,0.00019726,2]
[349877435,1737474650164,-500.0,0.00019726,2]
[349877436,1737474650174,-230.73925174,0.00019726,2]
[349877437,1737474650184,-500.0,0.00019726,2]
[349877438,1737474650194,-500.0,0.00019726,2]
[349877439,1737474650203,-500.0,0.00019726,2]
[349877440,1737474650213,-500.0,0.00019726,2]
[349877441,1737474650223,-228.01341582,0.00019726,2]
[349877442,1737474650243,-414.95931322,0.00019726,2]
[349877443,1737474650253,-500.0,0.00019726,2]
[349877444,1737474650262,-500.0,0.00019726,2]
[349877445,1737474650272,-575.63976696,0.00019726,2]
[349877446,1737474650282,-500.0,0.00019726,2]
[349877447,1737474650291,-500.0,0.00019726,2]
[349877448,1737474650301,-507.06762682,0.00019726,2]
[349877449,1737474650311,-500.0,0.00019726,2]
[349877450,1737474650320,-412.7202126,0.00019726,2]
[349877451,1737474650330,-524.82,0.00019726,2]
[349877452,1737474650340,-70.97633241,0.00019726,2]
[349877453,1737474706640,204.46,0.00019513,30]
[349877456,1737475083508,162.47,0.00010137,2]
[349877461,1737475447559,1200.75286793,0.00022,30]
[349877464,1737475716619,1085.3957702,0.0002129,30]
[349877477,1737475831597,-550.0,0.00015,2]
[349877478,1737475831608,-485.9,0.00016448,2]
[349877479,1737475831618,-162.47,0.00016813,2]
[349877480,1737475831629,-600.0,0.00017,2]
[349877481,1737475831638,-221.0,0.000176,5]
[349877482,1737475831648,-486.97,0.00018387,2]
[349877483,1737475831658,-1000.0,0.00018399,2]
[349877484,1737475831669,-560.7,0.00018516,2]
[349877485,1737475831678,-7853.05,0.00018571,2]
[349877486,1737475831688,-485.9,0.00018712,2]
[349877487,1737475831697,-250.0,0.00018836,2]
[349877488,1737475831708,-528.63429177,0.00018978,2]
[349877489,1737475831721,-486.97,0.00019067,2]
[349877490,1737475831732,-193.61,0.00019075,2]
[349877491,1737475831741,-951.663,0.00019078,2]
[349877492,1737475831751,-169.091,0.00019078,2]
[349877493,1737475831763,-172.61671403,0.00019078,2]
[349877494,1737475831773,-353.9518,0.00019078,2]
[349877495,1737475831783,-9710.8202,0.00019078,2]
[349877496,1737475831793,-15880.5788,0.00019078,2]
[349877497,1737475831802,-4622.8511,0.00019078,2]
[349877498,1737475831811,-500.0,0.00019078,2]
[349877499,1737475831821,-1000.0,0.00019078,2]
[349877500,1737475831830,-2033.7,0.00019078,2]
[349877501,1737475831840,-14024.3888,0.00019078,2]
[349877502,1737475831851,-220.0,0.00019078,2]
[349877503,1737475831862,-5000.0,0.00019078,2]
[349877504,1737475831871,-684.9,0.00019168,2]
[349877505,1737475831881,-151.04222067,0.00019173,2]
[349877506,1737475831890,-151.15569928,0.00019173,2]
[349877508,1737475832084,-550.85484683,0.00019178,2]
[349877510,1737475832094,-506.13620497,0.00019178,2]
[349877512,1737475832104,-504.30167973,0.00019178,2]
[349877513,1737475832114,-503.94541376,0.00019178,2]
[349877515,1737475832124,-389.17654142,0.00019178,2]
[349877517,1737475832133,-509.54999404,0.00019178,2]
[349877519,1737475832143,-500.0,0.00019178,2]
[349877521,1737475832152,-502.40432962,0.00019178,2]
[349877523,1737475832161,-509.81950304,0.00019178,2]
[349877525,1737475832171,-502.07436926,0.00019178,2]
[349877527,1737475832180,-633.78268569,0.00019178,2]
[349877529,1737475832190,-503.48666035,0.00019178,2]
[349877531,1737475832199,-500.0,0.00019178,2]
[349877533,1737475832209,-500.0,0.00019178,2]
[349877535,1737475832220,-500.0,0.00019178,2]
[349877537,1737475832229,-500.0,0.00019178,2]
[349877539,1737475832238,-500.0,0.00019178,2]
[349877541,1737475832247,-500.0,0.00019178,2]
[349877543,1737475832256,-505.6929089,0.00019178,2]
[349877545,1737475832266,-500.0,0.00019178,2]
[349877548,1737475832275,-500.0,0.00019178,2]
[349877550,1737475832285,-500.0,0.00019178,2]
[349877552,1737475832294,-500.0,0.00019178,2]
[349877554,1737475832303,-500.0,0.00019178,2]
[349877556,1737475832313,-500.0,0.00019178,2]
[349877558,1737475832322,-500.0,0.00019178,2]
[349877560,1737475832332,-500.0,0.00019178,2]
[349877562,1737475832342,-500.0,0.00019178,2]
[349877564,1737475832351,-500.0,0.00019178,2]
[349877566,1737475832361,-500.0,0.00019178,2]
[349877568,1737475832371,-500.0,0.00019178,2]
[349877570,1737475832382,-699.31,0.00019178,2]
[349877572,1737475832392,-500.0,0.00019178,2]
[349877574,1737475832402,-500.0,0.00019178,2]
[349877576,1737475832412,-500.0,0.00019178,2]
[349877578,1737475832421,-500.0,0.00019178,2]
[349877580,1737475832431,-500.0,0.00019178,2]
[349877582,1737475832441,-501.56190817,0.00019178,2]
[349877584,1737475832450,-500.0,0.00019178,2]
[349877586,1737475832459,-500.0,0.00019178,2]
[349877588,1737475832471,-500.0,0.00019178,2]
[349877590,1737475832481,-500.0,0.00019178,2]
[349877592,1737475832490,-500.0,0.00019178,2]
[349877594,1737475832499,-500.0,0.00019178,2]
[349877596,1737475832508,-500.0,0.00019178,2]
[349877598,1737475832517,-500.0,0.00019178,2]
[349877600,1737475832527,-500.0,0.00019178,2]
[349877602,1737475832536,-511.51401645,0.00019178,2]
[349877604,1737475832545,-546.70669986,0.00019178,2]
[349877606,1737475832554,-500.0,0.00019178,2]
[349877607,1737475832564,-237.51263936,0.00019178,2]
[349877609,1737475832573,-500.0,0.00019178,2]
[349877611,1737475832582,-500.0,0.00019178,2]
[349877612,1737475832592,-501.91624544,0.00019178,2]
[349877613,1737475832600,-500.0,0.00019178,2]
[349877614,1737475832610,-500.0,0.00019178,2]
[349877615,1737475832618,-505.06424015,0.00019178,2]
[349877616,1737475832628,-500.0,0.00019178,2]
[349877617,1737475832638,-500.0,0.00019178,2]
[349877618,1737475832647,-500.0,0.00019178,2]
[349877619,1737475832656,-394.23069145,0.00019178,2]
[349877620,1737475832666,-500.0,0.00019178,2]
[349877621,1737475832675,-500.0,0.00019178,2]
[349877622,1737475832684,-500.0,0.00019178,2]
[349877623,1737475832693,-500.0,0.00019178,2]
[349877624,1737475832703,-501.91744674,0.00019178,2]
[349877625,1737475832712,-500.0,0.00019178,2]
[349877626,1737475832724,-500.0,0.00019178,2]
[349877627,1737475832734,-500.0,0.00019178,2]
[349877628,1737475832743,-199.47097777,0.00019178,2]
[349877629,1737475832753,-500.0,0.00019178,2]
[349877630,1737475832763,-503.78174763,0.00019178,2]
[349877631,1737475832773,-500.0,0.00019178,2]
[349877632,1737475832782,-500.0,0.00019178,2]
[349877633,1737475832791,-500.0,0.00019178,2]
[349877634,1737475832800,-500.0,0.00019178,2]
[349877635,1737475832811,-500.0,0.00019178,2]
[349877636,1737475832821,-500.0,0.00019178,2]
[349877637,1737475832830,-500.0,0.00019178,2]
[349877638,1737475832839,-500.0,0.00019178,2]
[349877639,1737475832848,-500.0,0.00019178,2]
[349877640,1737475832858,-500.0,0.00019178,2]
[349877641,1737475832867,-541.27,0.00019178,2]
[349877642,1737475832877,-500.0,0.00019178,2]
[349877643,1737475832898,-500.0,0.00019178,2]
[349877644,1737475832907,-500.0,0.00019178,2]
[349877645,1737475832917,-522.61,0.00019178,2]
[349877646,1737475832926,-500.0,0.00019178,2]
[349877647,1737475832936,-500.0,0.00019178,2]
[349877648,1737475832945,-500.0,0.00019178,2]
[349877649,1737475832954,-500.0,0.00019178,2]
[349877650,1737475832963,-500.0,0.00019178,2]
[349877651,1737475832975,-500.0,0.00019178,2]
[349877652,1737475832986,-500.0,0.00019178,2]
[349877653,1737475832995,-500.0,0.00019178,2]
[349877654,1737475833004,-500.0,0.00019178,2]
[349877655,1737475833013,-500.0,0.00019178,2]
[349877656,1737475833023,-500.0,0.00019178,2]
[349877657,1737475833032,-500.0,0.00019178,2]
[349877658,1737475833042,-850.12,0.00019178,2]
[349877659,1737475833052,-500.0,0.00019178,2]
[349877660,1737475833061,-504.22257209,0.00019178,2]
[349877661,1737475833072,-500.0,0.00019178,2]
[349877662,1737475833081,-502.20703911,0.00019178,2]
[349877663,1737475833090,-500.0,0.00019178,2]
[349877664,1737475833101,-547.49822178,0.00019178,2]
[349877665,1737475833110,-500.0,0.00019178,2]
[349877666,1737475833120,-500.0,0.00019178,2]
[349877667,1737475833131,-500.0,0.00019178,2]
[349877668,1737475833141,-500.0,0.00019178,2]
[349877669,1737475833151,-500.0,0.00019178,2]
[349877670,1737475833162,-289.2158349,0.00019178,2]
[349877671,1737475833172,-500.0,0.00019178,2]
[349877672,1737475833182,-504.95483589,0.00019178,2]
[349877673,1737475833192,-1704.94,0.00019178,2]
[349877674,1737475833203,-500.0,0.00019178,2]
[349877675,1737475833213,-500.0,0.00019178,2]
[349877676,1737475833228,-500.0,0.00019178,2]
[349877677,1737475833239,-500.0,0.00019178,2]
[349877678,1737475833249,-500.0,0.00019178,2]
[349877679,1737475833260,-157.30161,0.00019178,2]
[349877680,1737475833270,-519.7265706,0.00019178,2]
[349877681,1737475833281,-548.1,0.00019178,2]
[349877682,1737475833291,-500.0,0.00019178,2]
[349877683,1737475833300,-500.0,0.00019178,2]
[349877684,1737475833310,-300.0,0.00019178,2]
[349877685,1737475833319,-507.83073931,0.00019178,2]
[349877686,1737475833329,-500.0,0.00019178,2]
[349877687,1737475833340,-500.0,0.00019178,2]
[349877688,1737475833350,-500.0,0.00019178,2]
[349877689,1737475833360,-500.0,0.00019178,2]
[349877690,1737475833371,-500.0,0.00019178,2]
[349877691,1737475833383,-354.00834407,0.00019178,2]
[349877692,1737475833393,-500.0,0.00019178,2]
[349877693,1737475833404,-633.73759625,0.00019178,2]
[349877694,1737475833414,-500.0,0.00019178,2]
[349877695,1737475833424,-500.0,0.00019178,2]
[349877696,1737475833434,-500.0,0.00019178,2]
[349877697,1737475833444,-500.0,0.00019178,2]
[349877698,1737475833454,-500.0,0.00019178,2]
[349877699,1737475833465,-500.0,0.00019178,2]
[349877700,1737475833477,-500.0,0.00019178,2]
[349877701,1737475833488,-500.0,0.00019178,2]
[349877702,1737475833499,-500.0,0.00019178,2]
[349877703,1737475833509,-500.0,0.00019178,2]
[349877704,1737475833519,-500.0,0.00019178,2]
[349877705,1737475833529,-519.66832686,0.00019178,2]
[349877706,1737475833540,-500.0,0.00019178,2]
[349877707,1737475833549,-500.0,0.00019178,2]
[349877708,1737475833559,-500.0,0.00019178,2]
[349877709,1737475833569,-500.0,0.00019178,2]
[349877710,1737475833580,-500.0,0.00019178,2]
[349877711,1737475833590,-500.0,0.00019178,2]
[349877712,1737475833600,-500.0,0.00019178,2]
[349877713,1737475833610,-500.0,0.00019178,2]
[349877714,1737475833620,-500.0,0.00019178,2]
[349877715,1737475833630,-500.0,0.00019178,2]
[349877716,1737475833641,-500.0,0.00019178,2]
[349877717,1737475833652,-500.0,0.00019178,2]
[349877718,1737475833663,-500.0,0.00019178,2]
[349877719,1737475833674,-500.0,0.00019178,2]
[349877720,1737475833684,-500.0,0.00019178,2]
[349877721,1737475833694,-500.0,0.00019178,2]
[349877722,1737475833704,-500.0,0.00019178,2]
[349877723,1737475833714,-584.12,0.00019178,2]
[349877724,1737475833726,-500.0,0.00019178,2]
[349877725,1737475833735,-500.0,0.00019178,2]
[349877726,1737475833745,-500.0,0.00019178,2]
[349877727,1737475833755,-500.0,0.00019178,2]
[349877728,1737475833769,-500.0,0.00019178,2]
[349877729,1737475833779,-500.0,0.00019178,2]
[349877730,1737475833789,-500.0,0.00019178,2]
[349877731,1737475833800,-500.0,0.00019178,2]
[349877732,1737475833812,-555.06062379,0.00019178,2]
[349877733,1737475833822,-500.0,0.00019178,2]
[349877734,1737475833834,-500.0,0.00019178,2]
[349877735,1737475833845,-500.0,0.00019178,2]
[349877736,1737475833856,-500.0,0.00019178,2]
[349877737,1737475833867,-500.0,0.00019178,2]
[349877738,1737475833877,-500.0,0.00019178,2]
[349877739,1737475833888,-500.0,0.00019178,2]
[349877740,1737475833898,-500.0,0.00019178,2]
[349877741,1737475833908,-500.0,0.00019178,2]
[349877742,1737475833918,-500.0,0.00019178,2]
[349877743,1737475833928,-681.6,0.00019178,2]
[349877744,1737475833938,-500.0,0.00019178,2]
[349877745,1737475833948,-500.0,0.00019178,2]